fUST/lending_fUST_20250309
["ID","MTS","AMOUNT","RATE_DAILY","PERIOD"]
[355733189,1741515147735,500.0,0.00031,10]
[355733190,1741515148148,500.0,0.00031,10]
[355733191,1741515148562,500.0,0.00031,10]
[355733192,1741515148985,500.0,0.0002802,2]
[355733193,1741515149315,500.0,0.0002802,2]
[355733194,1741515149684,710.4343693,0.0002802,2]
[355733196,1741515247590,-235.57957792,0.00040938,2]
[355733197,1741515349692,-150.0,0.00040842,2]
[355733198,1741515568801,-150.0,0.00040842,2]
[355733199,1741515613554,-150.0,0.0003589,2]
[355733200,1741515650938,-13.556062,0.0003589,2]
[355733201,1741515650965,-136.443938,0.00039804,2]
[355733202,1741515676206,-150.0,0.000399,8]
[355733203,1741515722917,-174.03589547,0.00040838,120]
[355733205,1741515776745,-219.8502317,0.00039804,2]
[355733206,1741515776767,-80.1497683,0.000399,8]
[355733207,1741515780936,-598.54252975,0.000399,8]
[355733209,1741515881288,-212.0,0.00040842,2]
[355733210,1741515940125,-583.125444,0.00040842,2]
[355733216,1741515995083,-966.0706929,0.00040842,2]
[355733217,1741515995105,-264.42042208,0.00040938,2]
[355733218,1741515995127,-161.74199836,0.00041096,2]
[355733219,1741515995150,-179.76574647,0.00043391,29]
[355733220,1741515995172,-174.03589547,0.00043891,120]
[355733221,1741515995193,-276.73,0.00045,120]
[355733222,1741515995215,-1083.70349016,0.00045267,2]
[355733223,1741515995235,-419.76935039,0.00045745,2]
[355733227,1741516025294,-347.36244252,0.00044922,2]
[355733229,1741516070606,517.13383807,0.00018,2]
[355733232,1741516113097,1606.87691927,0.00018,4]
[355733233,1741516114980,9644.00155331,0.00017,2]
[355733255,1741516145155,-250.0,0.00040139,2]
[355733256,1741516145178,-200.4486815,0.00040651,2]
[355733257,1741516145201,-2853.46750913,0.00042,120]
[355733258,1741516145221,-158.41392071,0.00043167,2]
[355733266,1741516183846,166.871336,0.00040325,2]
[355733267,1741516184043,166.871336,0.00042744,2]
[355733270,1741516188732,263.83325,0.00038115,14]
[355733271,1741516199565,24900.0,0.00040553,2]
[355733322,1741516236178,-1205.195,0.000435,120]
[355733324,1741516236188,-801.0692214,0.000439,9]
[355733326,1741516236198,-263.83325,0.0004452,120]
[355733328,1741516236207,-550.0,0.00044599,5]
[355733331,1741516236218,-5000.0,0.000446,90]
[355733332,1741516236228,-174.03589547,0.00044822,120]
[355733335,1741516236237,-664.36670907,0.00044922,2]
[355733336,1741516236249,-5794.31017791,0.00045745,2]
[355733337,1741516236259,-6214.0795283,0.00045745,2]
[355733339,1741516236268,-1713.37289115,0.00045976,28]
[355733340,1741516236277,-10733.8234078,0.00046,8]
[355733342,1741516236289,-426.0,0.00046,8]
[355733343,1741516236300,-6874.63845813,0.00046,8]
[355733354,1741516237883,-7663.90879281,0.00046,8]
[355733355,1741516237893,-1515.06630339,0.00046076,2]
[355733356,1741516237903,-10461.89468358,0.00046124,2]
[355733357,1741516237913,-500.0,0.00046135,2]
[355733358,1741516237922,-500.0,0.00046135,120]
[355733359,1741516237932,-500.0,0.00046135,2]
[355733360,1741516237942,-500.0,0.00046135,120]
[355733361,1741516237951,-500.0,0.00046135,2]
[355733362,1741516237960,-500.0,0.00046135,120]
[355733363,1741516237970,-500.0,0.00046135,120]
[355733364,1741516237979,-500.0,0.00046135,120]
[355733366,1741516237989,-500.0,0.00046135,2]
[355733368,1741516238000,-500.0,0.00046135,2]
[355733369,1741516238010,-500.0,0.00046135,120]
[355733370,1741516238019,-500.0,0.00046135,2]
[355733371,1741516238028,-500.0,0.00046135,120]
[355733372,1741516238037,-536.59725312,0.00046135,2]
[355733373,1741516238047,-500.0,0.00046135,2]
[355733374,1741516238057,-500.0,0.00046135,120]
[355733375,1741516238067,-442.83195463,0.00046135,120]
[355733376,1741516238076,-500.0,0.00046135,120]
[355733377,1741516238086,-500.0,0.00046135,2]
[355733378,1741516238096,-450.0,0.00046135,120]
[355733379,1741516238105,-500.0,0.00046135,2]
[355733380,1741516238115,-500.0,0.00046135,120]
[355733381,1741516238125,-500.0,0.00046135,2]
[355733382,1741516238138,-500.0,0.00046135,2]
[355733383,1741516238147,-500.0,0.00046135,120]
[355733384,1741516238157,-500.0,0.00046135,2]
[355733385,1741516238166,-500.0,0.00046135,2]
[355733386,1741516238176,-500.0,0.00046135,120]
[355733387,1741516238185,-500.0,0.00046135,2]
[355733388,1741516238195,-500.0,0.00046135,2]
[355733389,1741516238205,-500.0,0.00046135,120]
[355733390,1741516238214,-500.0,0.00046135,2]
[355733391,1741516238224,-500.0,0.00046135,2]
[355733392,1741516238234,-500.0,0.00046135,2]
[355733393,1741516238243,-500.0,0.00046135,2]
[355733394,1741516238254,-500.0,0.00046135,2]
[355733395,1741516238263,-500.0,0.00046135,2]
[355733396,1741516238272,-500.0,0.00046135,2]
[355733397,1741516238281,-500.0,0.00046135,2]
[355733398,1741516238290,-500.0,0.00046135,2]
[355733399,1741516238300,-500.0,0.00046135,2]
[355733400,1741516238310,-500.0,0.00046135,2]
[355733401,1741516238319,-500.0,0.00046135,2]
[355733402,1741516238329,-500.0,0.00046135,2]
[355733403,1741516238339,-500.0,0.00046135,2]
[355733404,1741516238348,-500.0,0.00046135,2]
[355733405,1741516238358,-119.20101247,0.00046135,2]
[355733406,1741516238648,-64.791716,0.00046135,2]
[355733412,1741516239992,-316.00727153,0.00046135,2]
[355733413,1741516240007,-500.0,0.00046135,2]
[355733414,1741516240018,-265.88724918,0.00046135,2]
[355733415,1741516240029,-500.0,0.00046135,2]
[355733416,1741516240040,-500.0,0.00046135,2]
[355733417,1741516240050,-47.95881132,0.00046135,2]
[355733418,1741516241192,-452.04118868,0.00046135,2]
[355733419,1741516241202,-189.40031482,0.00046135,2]
[355733420,1741516241215,-310.59968518,0.00046135,2]
[355733421,1741516241225,-500.0,0.00046135,2]
[355733422,1741516241235,-500.0,0.00046135,2]
[355733423,1741516241245,-294.92461998,0.00046135,2]
[355733452,1741516243026,-205.07538002,0.00046135,2]
[355733453,1741516243036,-424.94869607,0.00046135,2]
[355733454,1741516243047,-75.05130393,0.00046135,2]
[355733455,1741516243057,-211.70559506,0.00046135,2]
[355733457,1741516243102,-148.99902579,0.00046135,2]
[355733458,1741516243113,-139.29537915,0.00046135,2]
[355733459,1741516243123,-500.0,0.00046135,2]
[355733460,1741516243132,-500.0,0.00046135,2]
[355733461,1741516243145,-500.0,0.00046135,2]
[355733462,1741516243154,-37.98937669,0.00046135,2]
[355733463,1741516243359,-391.80417731,0.00046135,2]
[355733495,1741516245930,-120.206446,0.00046135,2]
[355733496,1741516245940,-844.90131237,0.00046148,2]
[355733497,1741516245949,-159.79242737,0.00046455,2]
[355733498,1741516245959,-152.43,0.00046545,30]
[355733499,1741516245968,-273.53,0.00046545,10]
[355733500,1741516245977,-154.63981426,0.00046555,4]
[355733501,1741516245989,-384.69036086,0.00046555,4]
[355733505,1741516246072,-38.59582695,0.00046555,4]
[355733506,1741516246210,-37847.67010409,0.00046555,4]
[355733507,1741516246222,-1216.77681815,0.00046555,4]
[355733508,1741516273224,300.0,0.00040039,2]
[355733509,1741516439176,-150.0,0.00041,14]
[355733511,1741516551841,-1567.25353226,0.00039862,2]
[355733512,1741517223715,-163.556062,0.0003589,2]
[355733513,1741517223741,-8.33648608,0.000379,8]
[355733514,1741517231580,-183.742672,0.00037762,2]
[355733515,1741517242137,-402.59778137,0.00037762,2]
[355733516,1741517242160,-815.71537365,0.000379,8]
[355733517,1741517242183,-400.0,0.00037991,2]
[355733518,1741517242204,-630.60479823,0.00037992,2]
[355733519,1741517270899,-2937.35555667,0.00037992,2]
[355733537,1741517347106,-159.301042,0.00038356,2]
[355733538,1741517347129,-808.83297594,0.000389,8]
[355733539,1741517351079,-219.018697,0.000393,2]
[355733540,1741517351100,-1114.50993983,0.00039862,2]
[355733541,1741517360081,-186.53233061,0.00039862,2]
[355733542,1741517360118,-159.301042,0.0004,2]
[355733543,1741517360140,-24900.0,0.00040362,2]
[355733544,1741517360163,-160.0,0.00040827,2]
[355733545,1741517360186,-159.301042,0.00041644,2]
[355733546,1741517360208,-380.43675805,0.00041893,15]
[355733547,1741517360230,-586.34045337,0.00042762,2]
[355733548,1741517387963,160.31466163,0.00040361,31]
[355733549,1741517388306,500.0,0.00040361,2]
[355733550,1741517388763,500.0,0.00040361,31]
[355733551,1741517389073,170.73302812,0.00040361,2]
[355733552,1741517389371,500.0,0.00040361,31]
[355733553,1741517389454,500.0,0.00040361,2]
[355733554,1741517393067,500.0,0.00040361,2]
[355733555,1741517393489,202.47862416,0.00040361,31]
[355733556,1741517393519,500.0,0.00040361,2]
[355733557,1741517393559,500.0,0.00040361,2]
[355733558,1741517393594,500.0,0.00040361,2]
[355733559,1741517393632,500.0,0.00040361,2]
[355733560,1741517393788,500.0,0.00040361,2]
[355733561,1741517393817,500.0,0.00040361,2]
[355733562,1741517393850,500.0,0.00040361,2]
[355733563,1741517393879,500.0,0.00040361,2]
[355733564,1741517393907,500.0,0.00040361,2]
[355733565,1741517393970,500.0,0.00040361,2]
[355733566,1741517394003,500.0,0.00040361,2]
[355733567,1741517394029,500.0,0.00040361,2]
[355733568,1741517394065,500.0,0.00040361,2]
[355733569,1741517394091,500.0,0.00040361,2]
[355733570,1741517394122,420.54242035,0.00040361,2]
[355733571,1741517394154,500.0,0.00040361,2]
[355733572,1741517394185,500.0,0.00040361,2]
[355733573,1741517394220,500.0,0.00040361,2]
[355733574,1741517394325,500.0,0.00040361,2]
[355733575,1741517394376,500.0,0.00040361,2]
[355733576,1741517394435,500.0,0.00040361,2]
[355733577,1741517394477,500.0,0.00040361,2]
[355733578,1741517394567,500.0,0.00040361,2]
[355733579,1741517394610,500.0,0.00040361,2]
[355733580,1741517396347,500.0,0.00040361,2]
[355733615,1741517432489,-159.301042,0.00043288,2]
[355733617,1741517432499,-788.60010092,0.00044837,2]
[355733619,1741517432509,-159.301042,0.00044932,2]
[355733621,1741517432518,-1716.91463331,0.00045117,28]
[355733623,1741517432529,-788.60010092,0.00045172,2]
[355733625,1741517432540,-788.60010092,0.0004535,2]
[355733626,1741517432553,-1198.77019994,0.000454,30]
[355733629,1741517432566,-4845.22980006,0.000454,30]
[355733630,1741517432576,-550.0,0.00045493,5]
[355733632,1741517432592,-500.0,0.0004565,10]
[355733634,1741517432603,-500.0,0.0004565,10]
[355733636,1741517432614,-500.0,0.0004565,10]
[355733638,1741517432624,-500.0,0.0004565,2]
[355733640,1741517432637,-788.60010092,0.00045697,2]
[355733642,1741517432650,-788.60010092,0.00045804,2]
[355733644,1741517432661,-213.50430868,0.00045894,31]
[355733646,1741517432672,-271.11885644,0.00045894,120]
[355733647,1741517432682,-500.0,0.00045894,2]
[355733649,1741517432693,-5000.0,0.00045895,7]
[355733651,1741517432703,-5000.0,0.00045895,7]
[355733653,1741517432714,-5000.0,0.00045895,7]
[355733655,1741517432725,-5000.0,0.00045895,7]
[355733657,1741517432735,-5000.0,0.00045895,7]
[355733659,1741517432745,-5000.0,0.00045895,7]
[355733662,1741517432756,-5000.0,0.00045895,7]
[355733664,1741517432768,-5000.0,0.00045895,7]
[355733666,1741517432779,-5000.0,0.00045895,7]
[355733668,1741517432789,-5000.0,0.00045895,7]
[355733669,1741517432799,-416.66666667,0.00045895,7]
[355733671,1741517432809,-8751.12621525,0.0004596,4]
[355733675,1741517432846,-500.0,0.00045894,2]
[355733677,1741517432857,-392.05424203,0.00045894,2]
[355733679,1741517432866,-5982.5842161,0.0004596,4]
[355733750,1741517438126,-3455.65,0.0004596,4]
[355733756,1741517438183,-2730.26288135,0.0004596,4]
[355733758,1741517438196,-703.91104052,0.0004596,4]
[355733797,1741517438602,-249.87977258,0.0004596,4]
[355733889,1741517440218,-8030.07523058,0.0004596,4]
[355733941,1741517443672,-1108.09798732,0.0004596,4]
[355733942,1741517443681,-1440.64103355,0.0004596,4]
[355733943,1741517443691,-175.34,0.0004599,10]
[355733944,1741517443701,-372.32097913,0.00046,120]
[355733945,1741517443726,-4949.999999,0.00046,120]
[355733984,1741517446219,-4250.0,0.00046,120]
[355733987,1741517446232,-1699.8402266,0.00046,120]
[355733991,1741517446271,-849.7,0.00046,120]
[355734000,1741517542451,500.0,0.00031,10]
[355734001,1741517543273,500.0,0.00031,10]
[355734002,1741517543601,724.66915627,0.0002802,2]
[355734004,1741517652702,10000.0,0.00028,10]
[355734005,1741517659284,10000.0,0.00028,10]
[355734006,1741517670432,6000.0,0.00028,10]
[355734007,1741517763734,3751.46,0.00028,10]
[355734008,1741517790220,3751.4,0.0002502,2]
[355734013,1741518350110,-150.0,0.00031391,7]
[355734014,1741518350130,-150.0,0.00031391,7]
[355734015,1741518350151,-116.82625412,0.00031391,7]
[355734025,1741518434096,-102.17374588,0.00031391,7]
[355734026,1741518434117,-150.0,0.00031391,7]
[355734027,1741518434138,-132.96530617,0.00035,7]
[355734028,1741518447074,-195.44681779,0.000259,2]
[355734029,1741518447095,-195.44681779,0.000309,2]
[355734030,1741518447115,-217.03469383,0.00035,7]
[355734031,1741518447135,-168.909423,0.0003589,2]
[355734032,1741518447156,-195.44681779,0.000359,2]
[355734033,1741518447176,-104.44975874,0.000359,7]
[355734034,1741518545134,-400.0,0.00036606,2]
[355734035,1741518545156,-463.9625632,0.00036607,15]
[355734036,1741518545179,-358.86050077,0.00036607,2]
[355734037,1741518545200,-500.0,0.00036607,15]
[355734038,1741518545226,-500.0,0.00036607,2]
[355734039,1741518545250,-500.0,0.00036607,2]
[355734040,1741518545272,-500.0,0.00036607,15]
[355734041,1741518545296,-500.0,0.00036607,2]
[355734042,1741518545321,-500.0,0.00036607,2]
[355734043,1741518545343,-516.31789432,0.00036607,15]
[355734044,1741518545367,-500.0,0.00036607,2]
[355734045,1741518545390,-500.0,0.00036607,2]
[355734046,1741518545412,-500.0,0.00036607,2]
[355734047,1741518545436,-500.0,0.00036607,2]
[355734048,1741518545459,-500.0,0.00036607,2]
[355734049,1741518545483,-500.0,0.00036607,2]
[355734050,1741518545508,-500.0,0.00036607,2]
[355734051,1741518545531,-500.0,0.00036607,2]
[355734052,1741518545556,-500.0,0.00036607,2]
[355734053,1741518545580,-500.0,0.00036607,2]
[355734054,1741518545605,-500.0,0.00036607,2]
[355734055,1741518545631,-500.0,0.00036607,2]
[355734056,1741518545657,-500.0,0.00036607,2]
[355734057,1741518545681,-500.0,0.00036607,2]
[355734058,1741518545805,-500.0,0.00036607,2]
[355734059,1741518545831,-500.0,0.00036607,2]
[355734060,1741518545857,-500.0,0.00036607,2]
[355734061,1741518545882,-500.0,0.00036607,2]
[355734062,1741518545910,-500.0,0.00036607,2]
[355734063,1741518545935,-500.0,0.00036607,2]
[355734064,1741518545959,-500.0,0.00036607,2]
[355734065,1741518545984,-500.0,0.00036607,2]
[355734066,1741518546009,-500.0,0.00036607,2]
[355734067,1741518546032,-500.0,0.00036607,2]
[355734068,1741518546056,-500.0,0.00036607,2]
[355734069,1741518546080,-500.0,0.00036607,2]
[355734070,1741518546106,-500.0,0.00036607,2]
[355734071,1741518546132,-500.0,0.00036607,2]
[355734072,1741518546158,-500.0,0.00036607,2]
[355734073,1741518546184,-500.0,0.00036607,2]
[355734074,1741518546207,-500.0,0.00036607,2]
[355734075,1741518546232,-500.0,0.00036607,2]
[355734076,1741518546254,-500.0,0.00036607,2]
[355734077,1741518546277,-514.36515254,0.00036607,2]
[355734078,1741518546300,-500.0,0.00036607,2]
[355734079,1741518546323,-500.0,0.00036607,2]
[355734080,1741518546347,-500.0,0.00036607,2]
[355734081,1741518546370,-500.0,0.00036607,2]
[355734082,1741518546394,-500.0,0.00036607,2]
[355734083,1741518546417,-500.0,0.00036607,2]
[355734084,1741518546441,-500.0,0.00036607,2]
[355734085,1741518546465,-500.0,0.00036607,2]
[355734086,1741518546489,-500.0,0.00036607,2]
[355734087,1741518546512,-500.0,0.00036607,2]
[355734088,1741518546536,-500.0,0.00036607,2]
[355734089,1741518546559,-500.0,0.00036607,2]
[355734090,1741518546582,-250.0,0.00036607,2]
[355734091,1741518546605,-500.0,0.00036607,2]
[355734092,1741518546628,-500.0,0.00036607,2]
[355734093,1741518546652,-500.0,0.00036607,2]
[355734094,1741518546676,-500.0,0.00036607,2]
[355734095,1741518546700,-500.0,0.00036607,2]
[355734096,1741518546724,-500.0,0.00036607,2]
[355734097,1741518546749,-500.0,0.00036607,2]
[355734098,1741518546772,-500.0,0.00036607,2]
[355734099,1741518546796,-500.0,0.00036607,2]
[355734100,1741518546818,-500.0,0.00036607,2]
[355734101,1741518546841,-500.0,0.00036607,2]
[355734102,1741518546865,-500.0,0.00036607,2]
[355734103,1741518546888,-500.0,0.00036607,2]
[355734104,1741518546918,-500.0,0.00036607,2]
[355734105,1741518546945,-500.0,0.00036607,2]
[355734106,1741518546968,-500.0,0.00036607,2]
[355734107,1741518546994,-500.0,0.00036607,2]
[355734108,1741518547018,-500.0,0.00036607,2]
[355734109,1741518547042,-500.0,0.00036607,2]
[355734110,1741518547063,-189.78319951,0.00036608,15]
[355734111,1741518547085,-500.0,0.00036608,15]
[355734112,1741518547106,-633.18982014,0.00036608,15]
[355734113,1741518547127,-500.0,0.00036608,15]
[355734114,1741518547149,-24900.0,0.00036609,2]
[355734115,1741518547170,-267.17721038,0.000367,5]
[355734116,1741518547192,-177.67778004,0.00036841,101]
[355734117,1741518547213,-810.18583437,0.000369,7]
[355734118,1741518547235,-300.0,0.00036941,2]
[355734119,1741518547256,-375.325438,0.00037346,2]
[355734120,1741518547276,-500.0,0.00037346,2]
[355734121,1741518547296,-179.370103,0.00038356,2]
[355734122,1741518547316,-332.9568083,0.00038933,2]
[355734123,1741518547336,-560.0,0.00039184,5]
[355734124,1741518547357,-177.67778004,0.00040001,120]
[355734125,1741518547378,-179.370103,0.00040658,2]
[355734126,1741518547399,-162.0,0.00041,14]
[355734127,1741518547419,-2577.4160421,0.00041347,64]
[355734128,1741518547446,783.0,0.00041944,5]
[355734129,1741518551121,-179.370103,0.00042959,2]
[355734130,1741518551144,-177.67778004,0.00043161,120]
[355734131,1741518551165,-2915.37039868,0.00043188,2]
[355734132,1741518556128,-500.0,0.000432,10]
[355734133,1741518556150,-500.0,0.000432,2]
[355734134,1741518556170,-500.0,0.000432,7]
[355734135,1741518556192,-501.93751938,0.000432,10]
[355734136,1741518556212,-500.0,0.000432,10]
[355734137,1741518556233,-500.0,0.000432,10]
[355734138,1741518595181,286.75689899,0.00036607,2]
[355734193,1741518636019,-179.370103,0.0004526,2]
[355734194,1741518636029,-788.60010097,0.00045688,2]
[355734195,1741518636039,-772.37534467,0.00045861,2]
[355734196,1741518636048,-212.0,0.0004599,10]
[355734197,1741518636058,-250.0,0.00045999,2]
[355734198,1741518636067,-528.54,0.00045999,120]
[355734199,1741518636078,-500.0,0.00045999,2]
[355734200,1741518636087,-500.0,0.00045999,2]
[355734201,1741518636096,-500.0,0.00045999,2]
[355734202,1741518636106,-500.0,0.00045999,2]
[355734203,1741518636116,-500.0,0.00045999,2]
[355734204,1741518636127,-226.43651526,0.00045999,2]
[355734205,1741518636224,-3048.46696868,0.00046,120]
[355734206,1741518636236,-6151.1835976,0.00046,120]
[355734207,1741518636246,-212.98018388,0.00046,120]
[355734208,1741518636255,-159.79242736,0.00046236,2]
[355734209,1741518636265,-177.67778004,0.0004632,120]
[355734210,1741518636275,-500.0,0.00046323,31]
[355734211,1741518636284,-643.2328741,0.00046323,31]
[355734212,1741518636294,-26851.30175548,0.00046324,14]
[355734213,1741518636305,-306.49090452,0.00046324,14]
[355734214,1741518636314,-4067.28507523,0.00046326,4]
[355734221,1741518638166,-270.04631528,0.00046326,4]
[355734256,1741518640627,-772.79413623,0.00046326,4]
[355734257,1741518640640,-493.28256153,0.00046326,4]
[355734258,1741518640653,-506.06236576,0.00046326,4]
[355734296,1741518643541,-2762.40201268,0.00046326,4]
[355734297,1741518643615,-27.21487014,0.00046326,4]
[355734528,1741518646398,-2548.9748,0.00046326,4]
[355734548,1741518646557,-119.63714766,0.00046326,4]
[355735020,1741519300294,-179.26501344,0.0002802,2]
[355735021,1741519346289,-150.0,0.0002802,2]
[355735022,1741519405680,-152.0,0.0002802,2]
[355735026,1741519420742,-18.73498656,0.0002802,2]
[355735027,1741519420768,-427.80754319,0.00031,10]
[355735030,1741519557084,-72.19245681,0.00031,10]
[355735031,1741519557106,-168.909423,0.0003589,2]
[355735032,1741519557128,-500.0,0.00037417,2]
[355735033,1741519557150,-152.0,0.00037488,2]
[355735034,1741519557173,-400.0,0.00037693,2]
[355735035,1741519557197,-420.96431969,0.00037694,15]
[355735036,1741519557223,-500.0,0.00037694,15]
[355735037,1741519557251,-808.61466922,0.00037694,2]
[355735043,1741519629079,-398.0,0.00037693,2]
[355735044,1741519629106,-39.25807339,0.00037694,2]
[355735045,1741519629134,-601.64900394,0.00037694,2]
[355735047,1741519632082,-246.22373867,0.00037694,2]
[355735048,1741519632105,-500.0,0.00037694,15]
[355735049,1741519632132,-847.87274261,0.00037694,2]
[355735050,1741519632160,-573.11977582,0.00037694,2]
[355735051,1741519638121,-274.75296679,0.00037694,2]
[355735052,1741519638146,-500.0,0.00037694,15]
[355735053,1741519638174,-847.87274261,0.00037694,2]
[355735054,1741519638203,-421.4045057,0.00037694,2]
[355735055,1741519672137,24899.99840914,0.00018,2]
[355735068,1741519752086,-865.56008437,0.00035594,2]
[355735069,1741519752107,-3000.0,0.000375,30]
[355735070,1741519752128,-1612.15052886,0.0003759,2]
[355735071,1741519752149,-178.34664835,0.00037593,106]
[355735072,1741519752176,-743.45070452,0.00037689,2]
[355735073,1741519752199,-743.45070452,0.00037689,2]
[355735074,1741519752221,-500.0,0.00037689,15]
[355735075,1741519752243,-743.45070452,0.00037689,2]
[355735076,1741519752266,-201.70175462,0.00037689,15]
[355735077,1741519753120,-69.46402397,0.00037689,15]
[355735078,1741519753145,-743.45070452,0.00037689,2]
[355735079,1741519753166,-500.0,0.00037689,15]
[355735080,1741519753193,-743.45070452,0.00037689,2]
[355735081,1741519753216,-743.45070452,0.00037689,2]
[355735082,1741519753238,-500.0,0.00037689,15]
[355735083,1741519753261,-743.45070452,0.00037689,2]
[355735084,1741519753289,-743.45070452,0.00037689,2]
[355735085,1741519753312,-743.45070452,0.00037689,2]
[355735086,1741519753336,-743.45070452,0.00037689,2]
[355735087,1741519753359,-743.45070452,0.00037689,2]
[355735088,1741519753383,-743.45070452,0.00037689,2]
[355735089,1741519753405,-743.45070452,0.00037689,2]
[355735090,1741519753428,-743.45070452,0.00037689,2]
[355735091,1741519753452,-743.45070452,0.00037689,2]
[355735092,1741519753475,-743.45070452,0.00037689,2]
[355735093,1741519753498,-743.45070452,0.00037689,2]
[355735094,1741519753522,-743.45070452,0.00037689,2]
[355735095,1741519753546,-743.45070452,0.00037689,2]
[355735096,1741519753568,-743.45070452,0.00037689,2]
[355735097,1741519753592,-743.45070452,0.00037689,2]
[355735098,1741519753616,-743.45070452,0.00037689,2]
[355735099,1741519753639,-743.45070452,0.00037689,2]
[355735100,1741519753661,-743.45070452,0.00037689,2]
[355735101,1741519753685,-743.45070452,0.00037689,2]
[355735102,1741519753708,-743.45070452,0.00037689,2]
[355735103,1741519753731,-743.45070452,0.00037689,2]
[355735104,1741519753755,-743.45070452,0.00037689,2]
[355735105,1741519753777,-743.45070452,0.00037689,2]
[355735106,1741519753800,-743.45070452,0.00037689,2]
[355735107,1741519753822,-743.45070452,0.00037689,2]
[355735108,1741519753847,-743.45070452,0.00037689,2]
[355735109,1741519753872,-743.45070452,0.00037689,2]
[355735110,1741519753897,-743.45070452,0.00037689,2]
[355735111,1741519753923,-743.45070452,0.00037689,2]
[355735112,1741519753949,-743.45070452,0.00037689,2]
[355735113,1741519753975,-743.45070452,0.00037689,2]
[355735114,1741519754000,-743.45070452,0.00037689,2]
[355735115,1741519754028,-743.45070452,0.00037689,2]
[355735116,1741519754055,-743.45070452,0.00037689,2]
[355735117,1741519754083,-743.45070452,0.00037689,2]
[355735118,1741519754109,-743.45070452,0.00037689,2]
[355735119,1741519754133,-743.45070452,0.00037689,2]
[355735120,1741519754157,-743.45070452,0.00037689,2]
[355735121,1741519754183,-743.45070452,0.00037689,2]
[355735122,1741519754208,-743.45070452,0.00037689,2]
[355735123,1741519754232,-743.45070452,0.00037689,2]
[355735124,1741519754255,-743.45070452,0.00037689,2]
[355735125,1741519754281,-743.45070452,0.00037689,2]
[355735126,1741519754308,-743.45070452,0.00037689,2]
[355735127,1741519754407,-743.45070452,0.00037689,2]
[355735128,1741519754431,-743.45070452,0.00037689,2]
[355735129,1741519754455,-743.45070452,0.00037689,2]
[355735130,1741519754479,-743.45070452,0.00037689,2]
[355735131,1741519754503,-743.45070452,0.00037689,2]
[355735132,1741519754527,-743.45070452,0.00037689,2]
[355735133,1741519754551,-743.45070452,0.00037689,2]
[355735134,1741519754574,-743.45070452,0.00037689,2]
[355735135,1741519754598,-743.45070452,0.00037689,2]
[355735136,1741519754622,-743.45070452,0.00037689,2]
[355735137,1741519754646,-743.45070452,0.00037689,2]
[355735138,1741519754671,-743.45070452,0.00037689,2]
[355735139,1741519754695,-743.45070452,0.00037689,2]
[355735140,1741519754719,-743.45070452,0.00037689,2]
[355735141,1741519754743,-743.45070452,0.00037689,2]
[355735142,1741519754766,-743.45070452,0.00037689,2]
[355735143,1741519754790,-953.51882099,0.00037689,2]
[355735144,1741519754814,-953.51882099,0.00037689,2]
[355735145,1741519754838,-953.51882099,0.00037689,2]
[355735146,1741519754862,-953.51882099,0.00037689,2]
[355735147,1741519754887,-953.51882099,0.00037689,2]
[355735148,1741519754911,-953.51882099,0.00037689,2]
[355735149,1741519754936,-953.51882099,0.00037689,2]
[355735150,1741519754960,-953.51882099,0.00037689,2]